bitfinex/quotes_SOLUSD_20220118
["timestamp","ask_amount","ask_price","bid_price","bid_amount"]
[1642545866016,0.25,141.25,141.17,4.62075913]
[1642545866420,0.25,141.25,141.17,15.24475913]
[1642545868122,0.25,141.25,141.17,13.456]
[1642545871622,0.25,141.25,141.17,10.624]
[1642545872225,10.8745,141.25,141.16,38.78865913]
[1642545872424,2.832,141.24,141.16,35.95665913]
[1642545872626,10.8745,141.25,141.16,36.9999]
[1642545872627,23.6918,141.23,141.16,36.9999]
[1642545872827,23.6918,141.23,141.16,34.1679]
[1642545873028,23.6918,141.23,141.17,6.0]
[1642545873227,23.6918,141.23,141.17,8.832]
[1642545873628,2.832,141.27,141.17,8.832]
[1642545873826,33.9277,141.26,141.18,10.6231]
[1642545874027,33.9277,141.26,141.19,6.0]
[1642545874228,0.25,141.25,141.17,2.832]
[1642545874628,6.25,141.25,141.17,2.832]
[1642545874828,10.8746,141.25,141.17,2.832]
[1642545875030,24.2126,141.24,141.17,2.832]
[1642545875230,0.25,141.23,141.16,1.78875913]
[1642545875429,0.25,141.23,141.15,12.34035913]
[1642545875829,0.25,141.23,141.16,0.25]
[1642545876231,24.2126,141.24,141.16,0.25]
[1642545876431,24.2126,141.24,141.16,10.8748]
[1642545876630,24.2126,141.24,141.16,10.6248]
[1642545877733,0.25,141.23,141.16,10.6248]
[1642545880259,0.25,141.23,141.15,1.78875913]
[1642545880461,77.07,141.23,141.15,1.78875913]
[1642545881060,24.6767,141.22,141.15,1.78875913]
[1642545881261,24.6767,141.22,141.15,12.41425913]
[1642545881462,24.6767,141.22,141.15,13.92033669]
[1642545881662,24.6767,141.22,141.16,0.25]
[1642545883166,70.82,141.23,141.16,2.03875913]
[1642545883565,70.82,141.23,141.16,1.78875913]
[1642545883766,10.6253,141.24,141.16,1.78875913]
[1642545883967,24.3384,141.23,141.16,4.62075913]
[1642545885669,24.3384,141.23,141.17,1.78875913]
[1642545886267,0.25,141.22,141.17,1.78875913]
[1642545887568,10.8764,141.22,141.17,1.78875913]
[1642545888271,10.8764,141.22,141.16,1.78875913]
[1642545888570,23.1735,141.21,141.16,1.78875913]
[1642545888771,33.8008,141.21,141.16,1.78875913]
[1642545888970,0.25,141.2,141.16,1.78875913]
[1642545889369,6.25,141.2,141.16,1.78875913]
[1642545889568,6.25,141.2,141.15,1.78875913]
[1642545889569,0.25,141.2,141.15,1.78875913]
[1642545889968,6.25,141.2,141.15,1.78875913]
[1642545890171,16.8782,141.2,141.15,1.78875913]
[1642545890670,16.8782,141.2,141.13,1.78875913]
[1642545890874,19.7112,141.2,141.13,1.78875913]
[1642545891272,19.7112,141.2,141.1,4.00762471]
[1642545891273,54.0,141.17,141.1,4.00762471]
[1642545891475,10.6324,141.15,141.1,4.00762471]
[1642545891673,70.82,141.14,141.1,4.00762471]
[1642545891873,77.07,141.14,141.1,4.00762471]
[1642545892575,84.2874,141.13,141.05,14.64072471]
[1642545892776,0.25,141.12,141.05,4.00762471]
[1642545893675,0.25,141.12,141.04,6.8378177]
[1642545893876,6.25,141.12,141.04,4.0028177]
[1642545894076,0.25,141.12,141.04,4.0028177]
[1642545894478,16.8838,141.12,141.03,6.84262471]
[1642545894679,16.8838,141.12,141.02,10.04496781]
[1642545894680,70.82,141.11,141.02,10.04496781]
[1642545895080,70.82,141.09,141.02,10.04496781]
[1642545895280,70.82,141.09,141.0,13.7107]
[1642545895482,70.82,141.07,141.0,2.835]
[1642545895782,70.82,141.07,140.96,4.00762471]
[1642545895783,0.25,141.06,140.97,2.835]
[1642545895984,6.25,141.06,140.97,2.835]
[1642545896181,70.82,141.05,140.97,2.835]
[1642545896683,0.25,141.04,140.97,2.835]
[1642545896882,10.6401,141.02,140.97,2.835]
[1642545897682,0.25,141.01,140.97,2.835]
[1642545899407,10.8912,141.01,140.93,24.1717]
[1642545899809,10.8912,141.01,140.93,21.3347]
[1642545903013,10.8912,141.01,140.94,0.25]
[1642545903411,10.8912,141.01,140.93,21.3347]
[1642545903613,13.7282,141.01,140.94,0.25]
[1642545903812,10.8912,141.01,140.93,21.3347]
[1642545904011,13.7282,141.01,140.93,21.3347]
[1642545904611,13.7282,141.01,140.93,10.6415]
[1642545905311,13.7282,141.01,140.92,10.6429]
[1642545905512,84.5482,141.01,140.92,10.6429]
[1642545906114,6.0,141.0,140.92,10.6429]
[1642545906313,10.6435,140.98,140.92,10.6429]
[1642545906513,2.837,140.99,140.92,10.6429]
[1642545906714,2.837,141.03,140.92,10.6429]
[1642545906915,23.4832,141.04,140.92,10.6429]
[1642545907113,2.837,141.03,140.93,6.0]
[1642545907315,2.837,141.03,140.95,10.6405]
[1642545907917,0.25,141.02,140.95,10.6405]
[1642545909519,0.25,141.03,140.95,10.6405]
[1642545909919,58.1786,141.04,140.96,6.25]
[1642545910120,58.1786,141.04,140.97,10.6386]
[1642545910419,2.836,141.06,140.97,10.6386]
[1642545910629,2.836,141.06,140.98,3.086]
[1642545910630,10.6381,141.06,140.98,3.086]
[1642545911020,10.6381,141.06,140.98,0.25]
[1642545911224,1.21362298,141.07,141.0,10.6369]
[1642545912122,25.4272,141.09,141.02,10.635]
[1642545912322,2.836,141.11,141.03,0.25]
[1642545912521,6.0,141.1,141.03,0.25]
[1642545912722,1.836,141.11,141.03,0.25]
[1642545912923,10.6348,141.1,141.03,0.25]
[1642545913523,10.6348,141.1,141.0,6.25]
[1642545913824,10.6348,141.1,141.01,2.0]
[1642545914222,10.6348,141.1,141.02,0.25]
[1642545914622,9.6348,141.1,141.02,0.25]
[1642545915125,8.6348,141.1,141.02,0.25]
[1642545915727,0.25,141.09,141.03,2.835]
[1642545916024,10.8849,141.09,141.02,0.25]
[1642545918125,10.8849,141.09,141.01,0.25]
[1642545920025,81.7049,141.09,141.0,2.835]
[1642545920226,8.835,141.08,140.95,2.835]
[1642545920425,10.6387,141.05,140.95,2.835]
[1642545920824,0.25,141.04,140.95,2.835]
[1642545921229,0.25,141.05,140.96,0.25]
[1642545921427,0.25,141.05,140.96,10.8878]
[1642545922826,10.888,141.05,140.96,10.6378]
[1642545923828,13.724,141.05,140.96,10.6378]
[1642545924231,13.724,141.05,140.97,0.25]
[1642545924428,13.724,141.05,140.96,10.6378]
[1642545924628,84.544,141.05,140.95,2.835]
[1642545924830,84.544,141.05,140.94,44.6883]
[1642545924831,6.0,141.04,140.94,23.6605]
[1642545925029,10.6411,141.01,140.94,23.6605]
[1642545925229,2.837,141.03,140.92,2.836]
[1642545925833,2.837,141.03,140.93,0.25]
[1642545926130,19.4763,141.04,140.95,10.6393]
[1642545926330,16.6393,141.04,140.96,0.25]
[1642545926531,10.6393,141.04,140.96,0.25]
[1642545927433,10.6393,141.04,140.96,10.6383]
[1642545927834,0.25,141.03,140.97,0.25]
[1642545928034,10.8895,141.03,140.94,2.837]
[1642545928236,10.8895,141.03,140.95,0.25]
[1642545929134,2.836,141.04,140.95,0.25]
[1642545929337,38.463,141.05,140.95,0.25]
[1642545929534,35.627,141.05,140.96,2.836]
[1642545929736,35.627,141.05,140.97,0.25]
[1642545929934,35.627,141.05,140.93,3.086]
[1642545930435,35.627,141.05,140.95,10.6393]
[1642545930639,13.7249,141.04,140.95,10.6393]
[1642545930835,13.7249,141.04,140.96,0.25]
[1642545932259,13.7249,141.04,140.94,0.25]
[1642545932459,13.7249,141.04,140.96,10.6387]
[1642545933560,13.7249,141.04,140.97,0.25]
[1642545933761,2.836,141.06,140.97,10.8879]
[1642545933961,2.836,141.07,140.97,10.8879]
[1642545934162,24.9298,141.08,140.98,2.836]
[1642545934364,73.72839427,141.09,140.98,15.518]
[1642545934561,73.72839427,141.09,140.99,0.25]
[1642545934761,73.72839427,141.09,141.0,2.836]
[1642545935163,73.72839427,141.09,141.01,0.25]
[1642545935863,0.25,141.08,141.01,0.25]
[1642545936066,73.72839427,141.09,141.01,0.25]
[1642545936262,73.72839427,141.09,141.0,0.25]
[1642545936463,84.36329427,141.09,141.01,10.6347]
[1642545936866,84.36329427,141.09,141.02,0.25]
[1642545937064,84.36329427,141.09,141.01,10.6347]
[1642545937464,0.25,141.08,141.01,10.6347]
[1642545937870,0.25,141.08,141.02,0.25]
[1642545938068,84.36329427,141.09,141.01,10.6347]
[1642545938267,0.25,141.08,141.01,10.6347]
[1642545939972,84.36329427,141.09,141.02,0.25]
[1642545940169,84.36329427,141.09,141.02,3.085]
[1642545940969,12.06589427,141.09,141.02,3.085]
[1642545941171,10.634,141.11,141.02,12.39027756]
[1642545941370,10.634,141.11,141.03,8.835]
[1642545941671,10.634,141.11,141.04,0.25]
[1642545942171,13.4675,141.13,141.04,10.8831]
[1642545942369,2.835,141.16,141.05,2.835]
[1642545942569,2.835,141.16,141.05,9.628]
[1642545942770,2.835,141.16,141.06,0.25]
[1642545943469,10.6311,141.14,141.07,10.6306]
[1642545943869,10.6311,141.14,141.08,0.25]
[1642545944269,10.6311,141.14,141.05,2.835]
[1642545944674,10.6332,141.12,141.06,0.25]
[1642545944872,10.6332,141.12,141.04,6.0]
[1642545945069,10.6332,141.12,141.05,0.25]
[1642545945673,0.25,141.11,141.05,0.25]
[1642545946071,10.8834,141.11,141.05,0.25]
[1642545946272,10.8834,141.11,141.04,0.25]
[1642545946471,10.6334,141.11,141.04,0.25]
[1642545948473,0.25,141.1,141.04,0.25]
[1642545948676,10.8842,141.1,141.04,0.25]
[1642545949173,10.6342,141.1,141.04,0.25]
[1642545949376,2.835,141.12,141.04,10.883]
[1642545949575,25.9039,141.14,141.04,10.633]
[1642545949776,23.0689,141.14,141.05,3.084]
[1642545950608,10.6333,141.12,141.05,3.084]
[1642545950779,10.6333,141.12,141.05,0.25]
[1642545952384,10.6333,141.12,141.05,10.8824]
[1642545952586,10.6333,141.12,141.05,10.6324]
[1642545953686,0.25,141.11,141.04,10.6333]
[1642545953984,10.8833,141.11,141.04,10.6333]
[1642545954185,10.6333,141.11,141.04,10.6333]
[1642545954385,10.6333,141.11,141.05,0.25]
[1642545963821,10.6325,141.13,141.05,10.8825]
[1642545964021,10.6325,141.13,141.05,10.6325]
[1642545964223,10.6325,141.13,141.06,0.25]
[1642545965624,10.6325,141.13,141.06,3.084]
[1642545966126,10.6325,141.13,141.06,13.716]
[1642545966328,10.6325,141.13,141.06,10.882]
[1642545970131,10.6325,141.13,141.06,10.632]
[1642545970335,0.25,141.12,141.06,10.632]
[1642545972235,10.6325,141.13,141.07,0.25]
[1642545973535,0.25,141.12,141.06,10.632]
[1642545973738,0.25,141.12,141.04,21.2212]
[1642545973939,34.4344,141.12,141.05,6.25]
[1642545975139,34.4344,141.12,141.05,16.8825]
[1642545976642,34.4344,141.12,141.05,10.8825]
[1642545977370,34.1844,141.12,141.05,10.8825]
[1642545977570,13.4668,141.14,141.05,10.8825]
[1642545977771,29.81898276,141.17,141.05,10.8825]
[1642545977973,2.834,141.16,141.06,28.5221]
[1642545978172,2.834,141.16,141.08,10.6304]
[1642545978573,2.834,141.16,141.09,0.25]
[1642545978773,0.25,141.15,141.09,0.25]
[1642545979173,10.8802,141.16,141.09,0.25]
[1642545979774,10.6302,141.16,141.09,10.8796]
[1642545979975,1.6474699,141.17,141.09,10.6296]
[1642545980179,1.6474699,141.17,141.1,3.084]
[1642545980678,1.6474699,141.17,141.1,0.25]
[1642545981576,1.6474699,141.17,141.11,10.628]
[1642545983176,1.6474699,141.17,141.12,0.25]
[1642545986982,12.2762699,141.17,141.11,10.628]
[1642545987183,0.25,141.16,141.09,13.4634]
[1642545987382,0.25,141.16,141.09,2.834]
[1642545987582,1.6474699,141.17,141.1,0.25]
[1642545987784,0.25,141.16,141.1,0.25]
[1642545988691,0.25,141.16,141.09,2.834]
[1642545988889,10.8803,141.16,141.08,43.7874]
[1642545989685,10.8803,141.16,141.09,0.25]
[1642545992190,10.8803,141.16,141.09,2.834]
[1642545992794,10.6303,141.16,141.09,2.834]
[1642545992995,10.6303,141.16,141.09,13.4638]
[1642545993196,36.9186699,141.17,141.09,13.4638]
[1642545993395,36.9186699,141.17,141.1,6.0]
[1642545993596,36.9186699,141.17,141.1,6.25]
[1642545993897,12.2762699,141.17,141.1,6.25]
[1642545994496,12.2762699,141.17,141.1,16.8785]
[1642545999004,1.6474699,141.17,141.1,16.8785]
[1642545999406,13.462,141.19,141.1,16.8785]
[1642545999608,0.25,141.18,141.1,16.8785]
[1642546000104,10.8781,141.18,141.1,16.8785]
[1642546000304,10.6281,141.18,141.1,16.8785]
[1642546000506,2.834,141.19,141.1,87.6985]
[1642546000704,23.0349,141.2,141.11,2.833]
[1642546000905,23.0349,141.2,141.13,10.626]
[1642546001106,26.95321286,141.22,141.14,6.0]
[1642546001307,37.57831286,141.22,141.14,6.25]
[1642546001509,33.73,141.22,141.14,0.25]
[1642546001704,4.06046658,141.23,141.15,1.50763759]
[1642546002105,2.833,141.23,141.16,6.25]
[1642546002308,3.84831286,141.24,141.16,6.25]
[1642546002707,23.0166,141.25,141.16,6.25]
[1642546003132,23.0166,141.25,141.18,10.6228]
[1642546003432,78.28861286,141.27,141.18,10.6228]
[1642546003838,78.28861286,141.27,141.19,0.25]
[1642546004036,74.4403,141.27,141.19,0.25]
[1642546004238,22.8632,141.26,141.19,0.25]
[1642546004939,22.8632,141.26,141.18,0.25]
[1642546005539,33.4853,141.26,141.19,10.6219]
[1642546005740,36.3173,141.26,141.19,10.6219]
[1642546006541,0.25,141.25,141.19,10.6219]
[1642546008041,0.25,141.25,141.18,10.8726]
[1642546008242,10.8729,141.25,141.18,16.8726]
[1642546009744,3.84831286,141.26,141.19,70.82]
[1642546009945,3.84831286,141.26,141.21,10.6202]
[1642546010146,3.84831286,141.26,141.22,6.0]
[1642546010346,3.84831286,141.26,141.22,6.25]
[1642546010546,3.84831286,141.29,141.22,6.25]
[1642546011146,3.84831286,141.29,141.22,16.8689]
[1642546011344,3.84831286,141.29,141.22,16.6189]
[1642546011546,2.00295513,141.26,141.22,16.6189]
[1642546011746,2.00295513,141.26,141.22,10.6189]
[1642546011946,2.00295513,141.26,141.21,22.8644]
[1642546012247,2.00295513,141.25,141.21,33.4848]
[1642546012447,2.00295513,141.25,141.22,0.25]
[1642546012645,2.00295513,141.25,141.23,6.06439994]
[1642546013446,2.00295513,141.28,141.23,6.06439994]
[1642546015747,33.1815,141.3,141.24,0.25]
[1642546015748,2.00295513,141.29,141.24,0.25]
[1642546015949,2.00295513,141.29,141.22,10.6195]
[1642546016149,12.62285513,141.29,141.22,10.6195]
[1642546016449,10.6199,141.29,141.22,10.6195]
[1642546016649,10.6199,141.29,141.23,0.25]
[1642546016850,24.56545513,141.3,141.23,0.25]
[1642546017049,24.56545513,141.3,141.23,10.8686]
[1642546017249,22.5625,141.3,141.23,10.8686]
[1642546017452,22.5625,141.3,141.24,2.831]
[1642546017852,22.5625,141.3,141.25,0.25]
[1642546022796,12.62055513,141.32,141.25,0.25]
[1642546022995,6.25,141.31,141.25,16.8673]
[1642546023193,6.0,141.31,141.26,0.25]
[1642546024192,6.0,141.31,141.26,10.8662]
[1642546024793,6.0,141.31,141.26,13.6972]
[1642546024994,6.0,141.32,141.26,13.6972]
[1642546026595,6.0,141.32,141.26,10.8662]
[1642546027999,8.00295513,141.32,141.26,10.8662]
[1642546030601,2.00295513,141.3,141.26,10.8662]
[1642546032003,2.00295513,141.29,141.26,10.8662]
[1642546032403,2.00295513,141.29,141.27,6.0]
[1642546032604,2.00295513,141.29,141.28,6.06439994]
[1642546032905,2.00295513,141.29,141.28,6.31439994]
[1642546033302,2.00295513,141.31,141.28,6.31439994]
[1642546034606,2.00295513,141.31,141.28,16.92929994]
[1642546044108,2.00295513,141.31,141.28,16.67929994]
[1642546045414,2.00295513,141.31,141.29,0.25]
[1642546046420,2.00295513,141.31,141.3,6.06439994]
[1642546049246,23.0216,141.33,141.3,6.06439994]
[1642546049546,28.80391286,141.34,141.3,6.06439994]
[1642546050047,3.84831286,141.33,141.3,6.06439994]
[1642546052452,7.85120666,141.33,141.3,6.06439994]
[1642546054854,7.85120666,141.33,141.29,0.25]
[1642546055753,7.85120666,141.33,141.29,10.8642]
[1642546055954,2.00279805,141.3,141.29,10.6142]
[1642546056152,2.00279805,141.3,141.29,22.67859994]
[1642546056354,2.00279805,141.3,141.29,22.92859994]
[1642546057352,2.00279805,141.3,141.29,93.74859994]
[1642546057753,2.00279805,141.33,141.29,93.74859994]
[1642546057953,2.00279805,141.33,141.31,10.6124]
[1642546058356,2.00279805,141.33,141.32,6.31439994]
[1642546059356,2.00279805,141.34,141.32,6.31439994]
[1642546059956,2.00279805,141.34,141.32,16.92609994]
[1642546062160,2.00279805,141.35,141.32,16.92609994]
[1642546062357,2.00279805,141.35,141.33,6.0]
[1642546062556,2.00279805,141.35,141.33,16.611]
[1642546062957,2.00279805,141.35,141.34,3.03219997]
[1642546063156,2.00279805,141.35,141.34,3.28219997]
[1642546063358,2.00279805,141.35,141.34,3.03219997]
[1642546063759,2.00279805,141.35,141.34,3.28219997]
[1642546064259,2.00279805,141.36,141.34,3.28219997]
[1642546064459,2.00279805,141.36,141.35,0.25]
[1642546065059,2.00279805,141.36,141.35,3.28219997]
[1642546065862,2.00279805,141.37,141.35,3.28219997]
[1642546066062,2.00279805,141.37,141.36,3.03219997]
[1642546066263,2.00279805,141.37,141.36,3.28219997]
[1642546066862,2.00279805,141.37,141.36,3.03219997]
[1642546067265,2.00279805,141.37,141.36,3.28219997]
[1642546067464,2.00279805,141.38,141.36,3.28219997]
[1642546067663,2.00279805,141.38,141.37,3.03219997]
[1642546068865,2.00279805,141.39,141.37,3.03219997]
[1642546069069,2.00279805,141.39,141.38,3.03219997]
[1642546069769,2.00279805,141.39,141.38,3.28219997]
[1642546069967,2.00279805,141.39,141.38,3.03219997]
[1642546070772,2.00279805,141.4,141.38,3.03219997]
[1642546072373,2.00279805,141.4,141.39,3.03219997]
[1642546072569,2.00279805,141.41,141.39,3.03219997]
[1642546072771,8.00279805,141.41,141.39,3.03219997]
[1642546073069,2.00279805,141.41,141.39,3.03219997]
[1642546073471,2.00279805,141.41,141.4,3.03219997]
[1642546073672,2.00279805,141.41,141.4,3.28219997]
[1642546074502,0.371,141.42,141.4,3.28219997]
[1642546074702,0.371,141.42,141.41,3.03219997]
[1642546077204,0.371,141.42,141.41,3.28219997]
[1642546079407,0.371,141.42,141.41,3.03219997]
[1642546081107,0.371,141.42,141.37,2.828]
[1642546081309,3.199,141.42,141.34,13.279]
[1642546081506,0.371,141.42,141.34,10.451]
[1642546082311,0.371,141.42,141.35,10.6088]
[1642546082713,0.621,141.42,141.35,10.6088]
[1642546082912,0.621,141.42,141.34,2.829]
[1642546083211,2.829,141.41,141.33,2.829]
[1642546083410,2.829,141.41,141.32,2.829]
[1642546083611,2.829,141.41,141.34,10.6098]
[1642546083811,2.829,141.41,141.32,2.829]
[1642546084013,2.829,141.41,141.31,2.829]
[1642546084214,0.25,141.4,141.31,8.829]
[1642546084413,2.829,141.39,141.31,6.0]
[1642546084813,2.829,141.39,141.31,16.6121]
[1642546085217,27.4105,141.39,141.31,16.6121]
[1642546085514,27.4105,141.39,141.31,10.6121]
[1642546086213,38.0228,141.39,141.31,10.6121]
[1642546087018,27.4105,141.39,141.31,10.6121]
[1642546087217,0.25,141.38,141.3,10.5269]
[1642546087417,2.83,141.37,141.31,0.25]
[1642546088217,2.83,141.37,141.3,10.5269]
[1642546088516,0.25,141.38,141.3,10.5269]
[1642546089516,10.6138,141.37,141.3,10.5269]
[1642546089716,13.4438,141.37,141.3,10.5269]
[1642546091018,0.25,141.36,141.29,10.613]
[1642546091619,0.25,141.36,141.29,21.3361]
[1642546092120,0.25,141.36,141.3,0.25]
[1642546093420,2.83,141.37,141.3,0.25]
[1642546093620,15.44569805,141.38,141.3,13.6929]
[1642546093821,12.61569805,141.38,141.3,13.6929]
[1642546094221,0.25,141.37,141.3,3.08]
[1642546094420,3.08,141.37,141.3,0.25]
[1642546094821,3.08,141.37,141.28,6.25]
[1642546095524,13.6938,141.37,141.28,16.8638]
[1642546095924,23.5522,141.36,141.28,16.8638]
[1642546097126,23.5522,141.36,141.29,2.83]
[1642546097325,23.5522,141.36,141.3,0.25]
[1642546101032,0.25,141.35,141.29,13.443]
[1642546103133,23.5522,141.36,141.29,13.443]
[1642546103333,23.5522,141.36,141.29,10.613]
[1642546103833,0.25,141.35,141.29,10.613]
[1642546104033,3.08,141.35,141.29,10.613]
[1642546106039,3.08,141.35,141.28,6.0]
[1642546107439,3.08,141.35,141.28,16.6144]
[1642546107839,13.6953,141.35,141.28,6.0]
[1642546108869,16.6166,141.34,141.27,2.83]
[1642546109064,16.6166,141.34,141.26,2.83]
[1642546109264,23.0425,141.33,141.26,3.08]
[1642546109464,23.0425,141.33,141.24,2.83]
[1642546109664,6.0,141.32,141.24,2.83]
[1642546109865,2.831,141.31,141.24,2.83]
[1642546110067,16.6193,141.3,141.24,2.83]
[1642546110271,0.25,141.29,141.24,2.83]
[1642546111668,0.25,141.3,141.24,2.83]
[1642546111968,0.25,141.3,141.22,2.831]
[1642546112167,0.25,141.3,141.22,3.081]
[1642546112770,0.25,141.3,141.22,13.6999]
[1642546113967,0.25,141.3,141.22,13.4499]
[1642546114368,3.081,141.3,141.22,13.4499]
[1642546114568,13.7001,141.3,141.22,2.831]
[1642546115170,13.7001,141.3,141.23,0.25]
[1642546115370,10.8691,141.3,141.24,2.831]
[1642546115573,13.7001,141.3,141.22,3.081]
[1642546115776,10.8691,141.3,141.22,3.081]
[1642546116376,23.8564,141.29,141.22,3.081]
[1642546116777,0.25,141.28,141.22,3.081]
[1642546116974,0.25,141.28,141.21,10.8611]
[1642546117174,0.25,141.28,141.2,2.831]
[1642546117175,0.25,141.28,141.2,13.4515]
[1642546117375,0.25,141.28,141.21,6.0]
[1642546117575,3.081,141.28,141.21,6.0]
[1642546117976,3.081,141.28,141.2,13.4515]
[1642546118376,13.7015,141.28,141.21,6.0]
[1642546118577,13.7015,141.28,141.19,37.7745]
[1642546118778,23.3002,141.27,141.2,0.25]
[1642546119179,0.25,141.26,141.2,0.25]
[1642546120679,0.25,141.26,141.19,37.7745]
[1642546120878,0.25,141.26,141.19,13.1927]
[1642546121077,0.25,141.26,141.19,10.3617]
[1642546122579,10.872,141.26,141.19,10.3617]
[1642546123680,13.704,141.26,141.19,10.3617]
[1642546125587,13.704,141.26,141.17,13.4548]
[1642546125788,33.3632,141.25,141.18,0.25]
[1642546125988,22.74,141.25,141.18,10.8719]
[1642546126191,0.25,141.24,141.18,10.8719]
[1642546127187,0.25,141.24,141.18,0.25]
[1642546127588,0.25,141.24,141.17,27.1506]
[1642546128192,10.8734,141.24,141.17,27.1506]
[1642546130296,10.8734,141.24,141.18,0.25]
[1642546130712,0.25,141.24,141.18,0.25]
[1642546131308,0.25,141.24,141.17,27.1506]
[1642546132409,0.25,141.24,141.17,37.7735]
[1642546132612,33.3634,141.25,141.18,0.25]
[1642546132812,0.25,141.24,141.17,37.7735]
[1642546133412,0.25,141.24,141.17,27.1506]
[1642546134312,0.25,141.24,141.17,24.3186]
[1642546134528,10.8736,141.24,141.17,24.3186]
[1642546136341,13.7056,141.24,141.16,21.2212]
[1642546136940,23.1536,141.23,141.16,21.2212]
[1642546137440,0.25,141.22,141.16,21.2212]
[1642546137642,23.1536,141.23,141.16,21.2212]
[1642546138168,23.1536,141.23,141.17,0.25]
[1642546138373,23.1536,141.23,141.17,3.082]
[1642546138769,10.6236,141.24,141.17,3.082]
[1642546138968,10.6236,141.24,141.17,2.832]
[1642546139571,0.25,141.23,141.16,13.4556]
[1642546140171,10.6236,141.24,141.16,13.4556]
[1642546140172,9.229207,141.24,141.16,13.4556]
[1642546142279,0.25,141.23,141.16,13.4556]
[1642546143681,9.229207,141.24,141.17,0.25]
[1642546143981,9.229207,141.24,141.18,2.832]
[1642546144180,10.6227,141.25,141.18,2.832]
[1642546145081,0.25,141.24,141.18,2.832]
[1642546145285,0.25,141.24,141.17,13.4548]
[1642546145481,3.082,141.24,141.17,10.6228]
[1642546146481,0.25,141.24,141.17,10.6228]
[1642546150088,10.8735,141.24,141.17,10.6228]
[1642546151091,10.8735,141.24,141.16,15.44594421]
[1642546152589,10.8735,141.24,141.16,86.26594421]
[1642546153889,2.832,141.23,141.16,12.61394421]
[1642546154290,0.25,141.22,141.16,12.61394421]
[1642546155090,0.25,141.22,141.16,83.43394421]
[1642546155290,0.25,141.22,141.16,12.61394421]
[1642546155489,0.25,141.22,141.16,83.43394421]
[1642546155892,0.25,141.24,141.16,83.43394421]
[1642546156091,13.4557,141.25,141.16,83.43394421]
[1642546156290,10.6227,141.25,141.16,12.61394421]
[1642546157091,22.6818,141.24,141.16,12.61394421]
[1642546157491,0.25,141.23,141.16,12.61394421]
[1642546158792,3.082,141.23,141.16,1.99044421]
[1642546158992,11.43,141.23,141.16,1.99044421]
[1642546159792,8.598,141.23,141.16,4.82244421]
[1642546160492,19.2221,141.23,141.16,4.82244421]
[1642546161696,2.832,141.22,141.16,1.99044421]
[1642546161895,10.6291,141.21,141.16,4.421e-05]
[1642546162095,2.833,141.2,141.13,4.00762471]
[1642546162295,0.25,141.19,141.12,4.00762471]
[1642546162497,2.833,141.18,141.12,4.00762471]
[1642546162696,0.25,141.17,141.12,4.00762471]
[1642546163497,6.25,141.17,141.12,4.00762471]
[1642546163694,6.25,141.17,141.1,2.833]
[1642546163894,6.25,141.17,141.09,2.834]
[1642546164096,6.25,141.17,141.09,8.834]
[1642546164495,10.6301,141.16,141.09,8.834]